bitfinex/quotes_SOLUSD_20251025
["timestamp","ask_amount","ask_price","bid_price","bid_amount"]
[1761386022582,1.39171254,192.72,192.7,5.87941359]
[1761386022885,1.39171254,192.71,192.7,5.87941359]
[1761386023099,1.39171254,192.71,192.7,42.79941359]
[1761386024804,1.39171254,192.72,192.7,44.45418009]
[1761386025303,1.39171254,192.72,192.7,42.79941359]
[1761386025507,1.39171254,192.71,192.7,44.45418009]
[1761386025910,1.39171254,192.72,192.7,44.41418009]
[1761386026110,1.39171254,192.74,192.71,2.3447665]
[1761386026319,1.39171254,192.74,192.72,5.18887505]
[1761386026523,1.39171254,192.74,192.73,36.88]
[1761386026895,1.39171254,192.74,192.73,37.57]
[1761386027995,1.39171254,192.74,192.73,42.75860582]
[1761386029525,1.39171254,192.75,192.73,42.75860582]
[1761386029701,24.27171254,192.75,192.74,0.69]
[1761386030397,1.39171254,192.75,192.74,0.69]
[1761386030617,1.39171254,192.75,192.74,36.84]
[1761386031899,1.39171254,192.75,192.74,37.52]
[1761386035602,0.67,192.85,192.84,2.05865976]
[1761386035818,0.67,192.85,192.84,38.91865976]
[1761386037600,0.67,192.85,192.84,38.89865976]
[1761386041208,0.67,192.85,192.84,38.85865976]
[1761386041515,0.67,192.85,192.84,36.8]
[1761386043821,0.67,192.85,192.84,41.98564613]
[1761386044521,1.33707759,192.87,192.84,41.98564613]
[1761386044899,0.69,192.86,192.84,41.98564613]
[1761386046906,0.69,192.86,192.81,12.96600567]
[1761386047101,0.69,192.86,192.82,36.76]
[1761386047733,0.69,192.86,192.82,2.58454249]
[1761386047944,0.69,192.86,192.83,36.74]
[1761386048309,0.69,192.86,192.83,39.32454249]
[1761386048803,28.06433845,192.89,192.85,2.58454249]
[1761386048804,0.69,192.89,192.85,2.58454249]
[1761386049006,0.69,192.89,192.86,39.32454249]
[1761386049807,23.57,192.89,192.86,44.50960318]
[1761386050919,23.57,192.89,192.86,41.92506069]
[1761386051633,0.69,192.88,192.86,41.92506069]
[1761386051831,23.57,192.89,192.86,44.50960318]
[1761386052011,0.69,192.89,192.86,45.17960318]
[1761386052830,1.33707759,192.91,192.86,45.17960318]
[1761386053223,1.33707759,192.91,192.86,42.59506069]
[1761386053224,0.69,192.9,192.86,42.59506069]
[1761386053425,0.69,192.9,192.86,45.17960318]
[1761386054034,0.69,192.9,192.86,44.50960318]
[1761386054537,0.69,192.9,192.86,45.17960318]
[1761386055135,0.69,192.9,192.86,44.50960318]
[1761386057120,0.69,192.9,192.85,7.76991972]
[1761386057436,0.69,192.9,192.86,36.66]
[1761386057640,0.69,192.9,192.85,8.43991972]
[1761386057942,0.69,192.9,192.87,36.66]
[1761386058329,22.88,192.89,192.87,36.66]
[1761386058740,2.58454249,192.89,192.84,5.18547098]
[1761386058952,22.88,192.87,192.81,5.18645298]
[1761386059117,0.64707759,192.86,192.82,36.66]
[1761386059316,1.33707759,192.86,192.82,36.66]
[1761386059853,25.46454249,192.87,192.82,36.66]
[1761386059854,22.88,192.87,192.83,0.72]
[1761386060017,22.88,192.87,192.84,2.58454249]
[1761386060212,22.88,192.88,192.85,36.64]
[1761386060518,22.88,192.88,192.85,41.82513533]
[1761386060722,22.88,192.88,192.85,42.54513533]
[1761386060919,22.88,192.88,192.85,8.48967782]
[1761386061126,22.88,192.88,192.86,37.36]
[1761386061928,22.88,192.88,192.86,36.64]
[1761386062128,22.88,192.88,192.86,41.82510276]
[1761386066956,22.88,192.88,192.86,42.54510276]
[1761386067127,22.88,192.88,192.86,41.82510276]
[1761386067734,23.6,192.88,192.86,41.82510276]
[1761386068146,22.88,192.88,192.86,41.82510276]
[1761386068548,15.56864474,192.87,192.86,41.82510276]
[1761386069958,15.56864474,192.87,192.86,36.64]
[1761386070561,18.87318723,192.87,192.8,18.87292914]
[1761386070760,22.88,192.84,192.81,36.62]
[1761386071360,15.57106895,192.83,192.81,36.62]
[1761386071863,15.57106895,192.83,192.82,5.186184]
[1761386072261,16.93814654,192.83,192.77,0.72]
[1761386072467,2.58454249,192.81,192.78,5.18726008]
[1761386072766,0.64707759,192.81,192.79,36.62]
[1761386072951,15.5743024,192.8,192.79,36.62]
[1761386074286,15.5743024,192.8,192.77,5.18752917]
[1761386074446,15.5743024,192.8,192.77,5.90752917]
[1761386074649,15.5743024,192.8,192.78,36.62]
[1761386075668,15.5743024,192.8,192.79,41.80699102]
[1761386075968,16.2943024,192.8,192.79,41.80699102]
[1761386076168,16.2943024,192.8,192.79,5.18699102]
[1761386076371,16.2943024,192.8,192.79,41.80699102]
[1761386076757,16.2943024,192.8,192.79,36.62]
[1761386077445,15.5743024,192.8,192.79,36.62]
[1761386077859,15.5743024,192.8,192.79,41.80699102]
[1761386079175,22.88,192.77,192.72,5.18887505]
[1761386079474,3.23162008,192.76,192.72,41.80887505]
[1761386079769,3.95162008,192.76,192.73,36.62]
[1761386079948,0.72,192.75,192.71,5.18911193]
[1761386080267,0.72,192.75,192.72,36.62]
[1761386080886,0.72,192.75,192.72,41.80865977]
[1761386081174,26.18454249,192.75,192.72,41.80865977]
[1761386081349,15.57915509,192.74,192.72,41.80865977]
[1761386081789,15.57915509,192.74,192.72,5.18865977]
[1761386081952,15.57915509,192.74,192.72,41.80865977]
[1761386085268,16.29915509,192.74,192.72,41.80865977]
[1761386087452,0.72,192.74,192.72,41.80865977]
[1761386087653,0.64707759,192.75,192.72,41.80865977]
[1761386087849,1.36707759,192.75,192.72,41.80865977]
[1761386089056,1.36707759,192.75,192.72,42.52865977]
[1761386089959,1.36707759,192.75,192.72,41.80865977]
[1761386090477,1.36707759,192.75,192.72,42.50865977]
[1761386091275,3.95162008,192.75,192.72,5.18865977]
[1761386091484,3.95162008,192.75,192.73,36.64]
[1761386092576,1.36707759,192.75,192.73,41.82850801]
[1761386093784,1.36707759,192.75,192.72,5.18887505]
[1761386094081,24.24707759,192.75,192.73,36.64]
[1761386094292,38.87457857,192.75,192.73,36.64]
[1761386094583,38.87457857,192.75,192.72,5.18887505]
[1761386094780,38.87457857,192.75,192.73,36.64]
[1761386094965,38.87457857,192.75,192.73,41.82835539]
[1761386095168,38.87457857,192.75,192.73,5.18835539]
[1761386095472,38.87457857,192.75,192.73,41.82835539]
[1761386096094,38.22750098,192.75,192.73,41.82835539]
[1761386097378,37.50750098,192.75,192.74,0.7]
[1761386097682,22.88,192.76,192.74,2.35459191]
[1761386097986,22.88,192.75,192.74,0.7]
[1761386098283,22.88,192.75,192.73,54.79986994]
[1761386098581,38.45672836,192.78,192.73,54.79986994]
[1761386098761,38.45672836,192.78,192.74,0.7]
[1761386098958,22.88,192.76,192.75,1.65459191]
[1761386099196,22.88,192.76,192.75,38.27459191]
[1761386099369,22.88,192.76,192.75,44.13265935]
[1761386100566,22.88,192.76,192.75,42.47806744]
[1761386101080,23.6,192.76,192.71,0.67]
[1761386101286,0.72,192.75,192.72,36.62]
[1761386101586,39.10542368,192.76,192.73,5.18860582]
[1761386101768,0.72,192.75,192.74,36.62]
[1761386102275,0.72,192.75,192.73,5.18860582]
[1761386102479,22.88,192.74,192.73,36.62]
[1761386102682,22.88,192.74,192.72,5.18882693]
[1761386102877,22.88,192.74,192.7,12.97296026]
[1761386102878,3.0216695,192.73,192.69,5.18968291]
[1761386103187,3.0216695,192.73,192.69,36.62]
[1761386103188,22.88,192.72,192.69,36.62]
[1761386103497,0.64707759,192.71,192.69,36.62]
[1761386103999,16.94946948,192.71,192.68,5.18987827]
[1761386104172,16.94946948,192.71,192.68,41.80987827]
[1761386104493,0.72,192.7,192.67,5.19017802]
[1761386104700,0.64707759,192.69,192.66,5.19045861]
[1761386104996,1.65459191,192.68,192.66,5.19045861]
[1761386105299,2.37459191,192.68,192.66,5.19045861]
[1761386105991,0.72,192.68,192.65,36.62]
[1761386106293,23.6,192.68,192.65,36.62]
[1761386106465,25.25459191,192.68,192.64,5.1910299]
[1761386106666,25.25459191,192.68,192.64,41.8110299]
[1761386106873,23.6,192.68,192.64,42.4810299]
[1761386107072,24.24707759,192.68,192.64,42.4810299]
[1761386107272,22.88,192.67,192.64,42.4810299]
[1761386107490,22.88,192.67,192.65,36.62]
[1761386107682,23.6,192.68,192.65,41.81060661]
[1761386107882,23.6,192.68,192.65,42.48060661]
[1761386108196,22.88,192.68,192.65,42.48060661]
[1761386108697,22.88,192.68,192.65,5.86060661]
[1761386108894,22.88,192.68,192.65,42.48060661]
[1761386109405,22.88,192.68,192.65,41.83060661]
[1761386109406,23.6,192.67,192.65,41.83060661]
[1761386109993,22.88,192.67,192.65,5.19060661]
[1761386110193,22.88,192.64,192.59,5.19223517]
[1761386110495,1.65459191,192.61,192.58,5.29264121]
[1761386110692,1.65459191,192.61,192.58,0.1]
[1761386110895,25.9016695,192.6,192.58,0.1]
[1761386111083,24.24707759,192.6,192.58,0.1]
[1761386111280,2.37459191,192.59,192.58,0.1]
[1761386111484,25.25459191,192.59,192.58,0.1]
[1761386112378,2.37459191,192.59,192.58,0.1]
[1761386112899,25.25459191,192.59,192.58,0.1]
[1761386113278,22.88,192.59,192.58,0.1]
[1761386113484,22.88,192.59,192.58,0.77]
[1761386113690,28.72023894,192.6,192.58,0.77]
[1761386114074,28.72023894,192.6,192.58,0.1]
[1761386115995,28.72023894,192.6,192.58,0.77]
[1761386115996,22.88,192.6,192.58,0.77]
[1761386116385,23.52707759,192.6,192.58,0.77]
[1761386116690,144.03130595,192.63,192.58,0.77]
[1761386116691,140.49459191,192.63,192.58,7.61720974]
[1761386116870,141.21459191,192.63,192.58,7.61720974]
[1761386117073,139.56,192.63,192.59,0.67]
[1761386117670,138.84,192.63,192.59,7.51673317]
[1761386117902,102.2,192.63,192.6,1.65459191]
[1761386118080,102.2,192.63,192.6,2.32459191]
[1761386118277,102.2,192.63,192.61,0.67]
[1761386119099,102.2,192.63,192.59,19.82767714]
[1761386119274,102.2,192.63,192.6,0.67]
[1761386119903,102.2,192.63,192.6,5.86189157]
[1761386120978,102.2,192.63,192.62,1.65459191]
[1761386121178,0.64707759,192.66,192.62,2.37459191]
[1761386121378,0.64707759,192.66,192.63,0.72]
[1761386121702,0.64707759,192.67,192.63,0.72]
[1761386122602,1.31707759,192.67,192.63,0.72]
[1761386123080,1.31707759,192.67,192.63,5.9110666]
[1761386125912,0.67,192.66,192.63,5.1910666]
[1761386126093,1.31707759,192.67,192.63,5.9110666]
[1761386128111,1.31707759,192.67,192.64,0.72]
[1761386128508,0.64707759,192.67,192.64,0.72]
[1761386128699,0.64707759,192.68,192.64,7.56549095]
[1761386129092,0.64707759,192.68,192.65,0.72]
[1761386130007,0.64707759,192.68,192.65,5.91072724]
[1761386130909,0.64707759,192.68,192.65,5.19072724]
[1761386131120,1.31707759,192.68,192.65,5.19072724]
[1761386132392,1.31707759,192.68,192.64,5.1910299]
[1761386132595,1.31707759,192.68,192.64,5.9110299]
[1761386133324,0.64707759,192.68,192.65,0.72]
[1761386133489,0.64707759,192.68,192.65,5.9106507]
[1761386136418,1.31707759,192.68,192.65,5.9106507]
[1761386137494,1.31707759,192.68,192.65,5.1906507]
[1761386137896,0.64707759,192.68,192.65,5.9106507]
[1761386138107,1.31707759,192.68,192.65,5.9106507]
[1761386139003,0.64707759,192.68,192.65,5.9106507]
[1761386140927,60.83707759,192.69,192.65,5.9106507]
[1761386141321,24.19707759,192.69,192.65,5.9106507]
[1761386142020,24.19707759,192.69,192.65,7.56524261]
[1761386142520,24.19707759,192.69,192.65,6.84524261]
[1761386142822,24.19707759,192.69,192.66,5.91047873]
[1761386143131,24.19707759,192.69,192.66,5.19047873]
[1761386143421,0.67,192.68,192.66,5.19047873]
[1761386143624,24.19707759,192.69,192.66,5.19047873]
[1761386144301,24.19707759,192.69,192.66,5.91047873]
[1761386144608,24.19707759,192.69,192.66,5.19047873]
[1761386145119,24.19707759,192.69,192.66,5.91047873]
[1761386145318,1.31707759,192.69,192.66,5.91047873]
[1761386146205,1.31707759,192.69,192.66,5.19047873]
[1761386146627,0.67,192.68,192.66,5.19047873]
[1761386147326,0.64707759,192.69,192.66,5.91047873]
[1761386147917,1.31707759,192.69,192.66,5.91047873]
[1761386149237,1.31707759,192.69,192.64,0.72]
[1761386150128,0.64707759,192.69,192.64,0.72]
[1761386150424,0.64707759,192.69,192.65,5.19076044]
[1761386150627,1.30707759,192.69,192.65,5.19076044]
[1761386150826,1.30707759,192.69,192.65,5.91076044]
[1761386151026,0.66,192.68,192.65,5.19076044]
[1761386151410,0.64707759,192.69,192.65,5.91076044]
[1761386151617,1.30707759,192.69,192.65,5.19076044]
[1761386151818,1.30707759,192.69,192.66,0.72]
[1761386153734,1.30707759,192.69,192.65,5.19076044]
[1761386153933,1.30707759,192.69,192.65,5.91076044]
[1761386155133,0.66,192.68,192.65,5.91076044]
[1761386156930,0.64707759,192.69,192.66,0.72]
[1761386157135,1.30707759,192.69,192.65,5.91076044]
[1761386157622,0.66,192.68,192.65,5.91076044]
[1761386157823,2.58694148,192.66,192.58,0.1]
[1761386158036,2.58694148,192.63,192.6,5.19210799]
[1761386158246,0.66,192.63,192.6,5.19210799]
[1761386158948,0.66,192.63,192.6,5.87210799]
[1761386159318,0.66,192.63,192.6,5.19210799]
[1761386159717,3.24694148,192.63,192.6,5.19210799]
[1761386159918,3.24694148,192.63,192.59,5.19237566]
[1761386160140,0.66,192.62,192.59,5.19237566]
[1761386160345,2.58694148,192.61,192.58,5.2926103]
[1761386160726,0.66,192.61,192.58,5.9726103]
[1761386161330,0.66,192.66,192.6,2.58694148]
[1761386161552,1.30707759,192.66,192.62,2.58694148]
[1761386162022,1.30707759,192.66,192.63,0.68]
[1761386163035,37.26707759,192.67,192.63,3.26694148]
[1761386163342,37.92707759,192.67,192.63,8.45814003]
[1761386163544,37.92707759,192.67,192.63,7.77814003]
[1761386163748,37.92707759,192.67,192.64,0.68]
[1761386164242,0.66,192.7,192.65,2.58694148]
[1761386164541,0.66,192.7,192.63,5.19119855]
[1761386164542,0.66,192.7,192.66,3.26694148]
[1761386164744,4.45952632,192.7,192.66,3.26694148]
[1761386164930,0.66,192.7,192.67,0.68]
[1761386165118,4.45984306,192.7,192.67,0.68]
[1761386165554,4.45984306,192.7,192.66,7.77731437]
[1761386165843,4.45984306,192.7,192.66,8.45731437]
[1761386166759,36.62,192.72,192.69,2.58694148]
[1761386166924,36.62,192.72,192.7,3.26694148]
[1761386167264,0.66,192.76,192.71,2.58694148]
[1761386167426,3.79992623,192.75,192.71,0.68]
[1761386167628,26.67992623,192.74,192.71,3.26694148]
[1761386167927,22.88,192.74,192.71,3.26694148]
[1761386169248,22.88,192.74,192.71,8.45602102]
[1761386170166,22.88,192.73,192.71,5.86907954]
[1761386170662,22.88,192.73,192.71,7.77602102]
[1761386170965,22.88,192.73,192.71,8.45602102]
[1761386173243,22.88,192.72,192.69,8.45650671]
[1761386173642,22.88,192.72,192.69,7.77650671]
[1761386173842,23.54,192.73,192.7,0.68]
[1761386174049,22.88,192.73,192.7,0.68]
[1761386174447,22.88,192.72,192.7,0.68]
[1761386174940,22.88,192.72,192.69,7.77650671]
[1761386175144,23.54,192.72,192.69,7.77650671]
[1761386175344,23.54,192.72,192.69,8.45650671]
[1761386175767,22.88,192.72,192.69,8.45650671]
[1761386175962,22.88,192.72,192.7,0.68]
[1761386176161,22.88,192.72,192.69,7.77650671]
[1761386176465,22.88,192.68,192.64,0.68]
[1761386176647,3.89401907,192.71,192.64,0.68]
[1761386176852,22.88,192.69,192.65,2.58694148]
[1761386177059,22.88,192.69,192.66,0.68]
[1761386177366,0.66,192.68,192.6,11.395686]
[1761386177550,3.89401907,192.68,192.62,3.26694148]
[1761386178059,22.88,192.67,192.62,3.26694148]
[1761386178259,22.88,192.67,192.63,0.68]
[1761386178447,0.66,192.66,192.62,8.45845727]
[1761386179664,0.66,192.66,192.64,5.1910299]
[1761386180650,22.88,192.67,192.64,5.1910299]
[1761386180848,23.56,192.67,192.64,5.1910299]
[1761386185273,0.68,192.66,192.64,5.1910299]
[1761386185850,22.88,192.67,192.64,5.1910299]
[1761386186050,23.56,192.67,192.64,5.8910299]
[1761386186568,22.88,192.67,192.64,5.8910299]
[1761386186769,22.88,192.67,192.64,8.47797138]
[1761386186975,22.88,192.67,192.65,0.7]
[1761386188173,22.88,192.67,192.65,5.89071401]
[1761386189075,22.88,192.67,192.64,5.1910299]
[1761386189385,22.88,192.67,192.64,5.8910299]
[1761386189968,22.88,192.67,192.65,0.7]
[1761386190276,23.56,192.66,192.62,8.47831555]
[1761386190470,22.88,192.66,192.62,8.47831555]
[1761386190778,22.88,192.66,192.63,3.28694148]
[1761386191154,22.88,192.66,192.64,5.89095381]
[1761386191870,22.88,192.66,192.64,5.19095381]
[1761386192073,22.88,192.66,192.64,5.89095381]
[1761386194076,22.88,192.66,192.61,12.97941346]
[1761386194281,22.88,192.66,192.63,3.28694148]
[1761386195060,22.88,192.66,192.64,0.7]
[1761386195574,22.88,192.66,192.63,0.7]
[1761386195764,22.88,192.66,192.61,12.97941346]
[1761386195765,22.88,192.66,192.64,0.7]
[1761386196777,22.88,192.66,192.64,5.89089222]
[1761386197579,22.88,192.66,192.65,0.7]
[1761386197958,22.88,192.67,192.65,0.7]
[1761386199180,22.88,192.67,192.64,5.89089222]
[1761386199567,22.88,192.67,192.64,7.7778337]
[1761386199863,22.88,192.67,192.65,0.7]
[1761386200066,23.56,192.67,192.64,5.89089222]
[1761386200262,22.88,192.67,192.64,5.89089222]
[1761386200579,23.56,192.67,192.64,5.89089222]
[1761386201279,22.88,192.67,192.64,5.89089222]
[1761386205674,23.56,192.66,192.64,5.19089222]
[1761386205872,0.68,192.66,192.64,5.19089222]
[1761386207787,3.23401907,192.67,192.64,5.19089222]
[1761386207981,3.91401907,192.67,192.64,5.19089222]
[1761386208586,3.91401907,192.67,192.64,0.7]
[1761386208992,3.91401907,192.67,192.62,5.89156889]
[1761386209195,3.91401907,192.67,192.63,0.7]
[1761386209494,22.88,192.66,192.64,5.1910299]
[1761386211088,23.59,192.66,192.64,5.1910299]
[1761386212595,22.88,192.66,192.64,5.1910299]
[1761386212788,23.59,192.66,192.64,5.1910299]
[1761386213578,23.52707759,192.67,192.65,0.68]
[1761386213780,22.88,192.67,192.65,0.68]
[1761386215006,22.88,192.68,192.65,3.26694148]
[1761386215303,22.88,192.67,192.65,0.68]
[1761386215815,22.88,192.67,192.65,5.870574]
[1761386217387,23.59,192.68,192.65,5.870574]
[1761386219297,22.88,192.68,192.66,0.67]
[1761386219711,22.88,192.68,192.65,5.190574]
[1761386219712,24.21707759,192.68,192.65,5.190574]
[1761386220008,24.21707759,192.68,192.66,0.67]
[1761386220009,22.88,192.68,192.66,0.67]
[1761386220918,102.2,192.71,192.67,1.6557457]
[1761386221218,0.64707759,192.73,192.7,6.84512088]
[1761386221405,3.80674077,192.72,192.7,6.84512088]
[1761386221587,22.88,192.72,192.7,5.85937518]
[1761386221982,0.69,192.74,192.71,0.67]
[1761386222286,3.80674623,192.73,192.71,0.67]
[1761386222598,22.88,192.73,192.71,0.67]
[1761386222778,1.33707759,192.74,192.71,0.67]
[1761386222984,26.68532911,192.73,192.72,0.67]
[1761386223887,26.68532911,192.73,192.72,5.85887505]
[1761386224102,26.68532911,192.73,192.72,7.51462075]
[1761386224310,22.88,192.73,192.72,7.51462075]
[1761386224492,102.89,192.76,192.72,7.51462075]
[1761386224685,3.80339202,192.75,192.73,0.67]
[1761386225193,102.89,192.76,192.73,0.67]
[1761386225518,3.80192012,192.75,192.73,5.8583678]
[1761386226193,3.80192012,192.75,192.74,0.67]
[1761386226882,102.2,192.76,192.74,0.67]
[1761386227088,102.2,192.76,192.74,5.85825888]
[1761386227288,102.2,192.76,192.74,7.51400458]
[1761386228014,102.2,192.76,192.75,0.67]
[1761386228389,22.88,192.77,192.75,2.3257457]
[1761386228588,22.88,192.77,192.76,0.67]
[1761386228784,0.64707759,192.79,192.76,0.67]
[1761386228983,22.88,192.77,192.76,0.67]
[1761386229690,22.88,192.78,192.76,5.85779829]
[1761386230105,1.33707759,192.77,192.74,5.18833661]
[1761386231007,0.64707759,192.77,192.74,5.18833661]
[1761386231221,1.6557457,192.75,192.68,5.18995225]
[1761386231398,2.30282329,192.74,192.68,5.18995225]
[1761386231595,2.30282329,192.74,192.68,5.85995225]
[1761386231799,23.57,192.73,192.68,5.85995225]
[1761386232099,1.6557457,192.7,192.66,5.1903149]
[1761386232313,2.99282329,192.69,192.66,5.1903149]
[1761386232813,0.69,192.68,192.66,5.1903149]
[1761386233331,0.69,192.68,192.64,13.64703105]
[1761386233332,0.69,192.68,192.65,5.19076044]
[1761386233900,23.52707759,192.69,192.65,5.86076044]
[1761386234206,0.69,192.68,192.65,5.86076044]
[1761386237521,0.69,192.68,192.65,5.19076044]
[1761386238019,0.69,192.68,192.65,5.86076044]
[1761386239923,0.64707759,192.69,192.67,5.19022162]
[1761386240119,23.52707759,192.69,192.67,5.19022162]
[1761386240297,23.52707759,192.69,192.67,5.88022162]
[1761386240694,0.64707759,192.69,192.67,5.88022162]
[1761386241396,0.64707759,192.69,192.67,5.19022162]
[1761386241594,0.64707759,192.69,192.67,5.88022162]
[1761386243008,23.52707759,192.69,192.67,5.88022162]
[1761386246219,22.88,192.69,192.67,6.84596732]
[1761386246420,102.2,192.72,192.68,2.3457457]
[1761386246636,102.84707759,192.72,192.69,1.6557457]
[1761386246815,102.84707759,192.72,192.69,0.69]
[1761386247313,0.72,192.71,192.67,18.16577567]
[1761386247724,0.72,192.71,192.67,18.85577567]
[1761386248116,0.72,192.71,192.68,0.69]
[1761386248924,0.72,192.71,192.68,5.87969752]
[1761386252454,102.84707759,192.72,192.68,5.87969752]
[1761386252646,0.72,192.71,192.68,5.87969752]
[1761386252847,103.56707759,192.72,192.68,5.87969752]
[1761386253356,0.72,192.71,192.68,5.87969752]
[1761386257471,0.72,192.71,192.67,5.19022162]
[1761386258234,1.36707759,192.71,192.67,5.88022162]
[1761386259138,22.88,192.68,192.65,20.51340725]
[1761386259542,22.88,192.68,192.66,0.69]
[1761386260456,22.88,192.68,192.66,5.88036367]
[1761386263065,22.88,192.69,192.66,5.19036367]
[1761386263243,22.88,192.69,192.67,0.69]
[1761386264850,22.88,192.69,192.68,5.18995225]
[1761386265056,22.88,192.69,192.67,5.88017929]
[1761386265864,22.88,192.69,192.67,5.19017929]
[1761386268571,22.88,192.69,192.66,5.19049102]
[1761386268744,22.88,192.69,192.67,0.69]
[1761386269571,22.88,192.69,192.67,5.88018476]
[1761386271477,22.88,192.69,192.66,5.19049102]
[1761386271655,22.88,192.69,192.68,0.7]
[1761386271978,22.88,192.69,192.66,6.84623672]
[1761386272170,22.88,192.69,192.67,0.7]
[1761386272572,102.2,192.72,192.67,2.3557457]
[1761386272865,102.84707759,192.72,192.67,2.3557457]
[1761386273072,125.08,192.72,192.68,0.7]
[1761386273270,125.75,192.72,192.68,0.7]
[1761386273656,125.08,192.72,192.68,5.88991189]
[1761386273858,0.67,192.71,192.68,5.88991189]
[1761386280965,2.58610718,192.69,192.62,15.56460489]
[1761386281171,22.88,192.65,192.61,3.41944815]
[1761386281382,22.88,192.65,192.61,0.71]
[1761386281568,23.54,192.65,192.62,0.71]
[1761386283668,22.88,192.65,192.62,8.4876149]
[1761386284068,22.88,192.65,192.63,0.71]
[1761386285184,22.88,192.65,192.62,5.19150772]
[1761386285489,23.54,192.65,192.62,5.90150772]
[1761386286584,22.88,192.65,192.62,5.90150772]
[1761386287176,23.54,192.65,192.62,5.90150772]
[1761386287967,22.88,192.65,192.62,55.90150772]
[1761386288288,22.88,192.65,192.62,58.4876149]
[1761386290291,22.88,192.65,192.63,0.71]
[1761386291386,22.88,192.64,192.62,58.4876149]
[1761386292089,22.88,192.64,192.63,0.71]
[1761386292668,22.88,192.64,192.62,55.19150772]
[1761386292869,22.88,192.64,192.62,55.90150772]
[1761386293292,22.88,192.65,192.62,50.0]
[1761386293500,2.58610718,192.64,192.62,50.0]
[1761386293674,3.89318477,192.64,192.62,50.0]
[1761386293873,0.66,192.63,192.62,50.0]
[1761386294278,26.11318477,192.65,192.62,50.0]
[1761386294502,0.66,192.64,192.62,50.0]
[1761386303200,59.34,192.65,192.62,55.86150603]
[1761386303402,60.05,192.65,192.62,55.86150603]
[1761386305808,22.88,192.64,192.62,55.86150603]
[1761386308605,22.88,192.63,192.62,55.19150603]
[1761386309713,22.88,192.64,192.62,55.86150603]
[1761386309910,22.88,192.64,192.63,0.67]
[1761386310108,22.88,192.64,192.62,50.67]
[1761386312305,22.88,192.64,192.62,55.86154479]
[1761386313820,22.88,192.64,192.62,55.19154479]
[1761386314024,22.88,192.66,192.63,0.67]
[1761386316390,22.88,192.66,192.63,5.86124683]
[1761386316614,22.88,192.66,192.64,0.67]
[1761386317033,0.71,192.67,192.64,0.67]
[1761386317201,22.88,192.65,192.64,0.67]
[1761386318227,22.88,192.66,192.64,5.8610299]
[1761386320311,3.23318477,192.68,192.65,3.25610718]
[1761386320312,0.64707759,192.68,192.65,3.25610718]
[1761386320629,102.2,192.69,192.66,0.67]
[1761386321211,22.88,192.67,192.66,0.67]
[1761386321628,22.88,192.67,192.66,5.86049102]
[1761386322827,22.88,192.68,192.66,8.4465982]
[1761386323035,22.88,192.68,192.67,0.67]
[1761386323335,26.68568577,192.68,192.67,0.67]
[1761386323926,26.68568577,192.68,192.67,8.4463288]
[1761386324112,0.64707759,192.71,192.67,8.4463288]
[1761386324312,3.80733179,192.7,192.68,3.25610718]
[1761386324628,3.80733179,192.69,192.68,3.25610718]
[1761386324823,3.80733179,192.7,192.68,3.25610718]
[1761386325130,1.35707759,192.71,192.68,3.25610718]
[1761386325330,3.80877112,192.7,192.68,8.44594456]
[1761386325507,3.80877112,192.7,192.68,5.18983738]
[1761386325815,4.51877112,192.7,192.68,5.18983738]
[1761386327334,0.71,192.7,192.68,5.18983738]
[1761386329312,5.16451805,192.71,192.68,5.85983738]
[1761386330523,5.16451805,192.71,192.68,8.44594456]
[1761386330728,4.51744046,192.71,192.68,8.44594456]
[1761386332830,4.49744046,192.71,192.68,5.88983738]
[1761386333139,4.49744046,192.71,192.68,8.47594456]
[1761386333640,22.88,192.73,192.7,2.58610718]